fUSD/lending_fUSD_20260314
["ID","MTS","AMOUNT","RATE_DAILY","PERIOD"]
[408355946,1773490340409,-70034.99999901,0.0004,120]
[408355947,1773490340433,-227.11,0.0004,120]
[408355948,1773490340458,-187.46,0.0004,120]
[408355949,1773490340483,-151.14,0.0004,120]
[408355950,1773490340510,-12499.99,0.0004,120]
[408355951,1773490340534,-1008.52,0.00040182,120]
[408355952,1773490340559,-499.38,0.000402,30]
[408355953,1773490340585,-942.1350985,0.00040433,68]
[408355954,1773490340610,-1008.52,0.000408,120]
[408355955,1773490340645,-1633.0,0.0004095,60]
[408355956,1773490340670,-194.86,0.00041,120]
[408355957,1773490340695,-306.30700735,0.00041,64]
[408355958,1773490340719,-521.22113536,0.00041,30]
[408355959,1773490340749,-500000.0,0.00041,120]
[408355960,1773490340775,-4221484.39668923,0.00041,120]
[408355961,1773490345532,-278515.60331077,0.00041,120]
[408355962,1773490345557,-4721484.39668923,0.00041,120]
[408355963,1773490349664,-278515.60331077,0.00041,120]
[408355964,1773490349691,-1260.0,0.00041,60]
[408355965,1773490349719,-496.0,0.00041,60]
[408355966,1773490349747,-241.83140513,0.00041068,120]
[408355967,1773490349777,-449.85,0.00041096,60]
[408355968,1773490349803,-179.52,0.00041096,60]
[408355969,1773490349827,-174.0,0.00041096,120]
[408355970,1773490349853,-153.66392202,0.000412,30]
[408355971,1773490349880,-251.87960918,0.00041215,70]
[408355972,1773490349904,-152.41,0.00041257,30]
[408355973,1773490349927,-436.8,0.00041452,120]
[408355974,1773490349952,-150.0,0.00041452,120]
[408355975,1773490349975,-307.08339118,0.000415,120]
[408355976,1773490349998,-208.562662,0.00041876,120]
[408355977,1773490350022,-152.89362605,0.00042,60]
[408355978,1773490350046,-233.4,0.00042,30]
[408355979,1773490350070,-2021.156,0.00042142,63]
[408355980,1773490350093,-150.0,0.00042173,120]
[408355981,1773490350117,-500.0,0.00042191,120]
[408355982,1773490350140,-403.740854,0.00042191,120]
[408355983,1773490350164,-1633.0,0.000423,60]
[408355984,1773490350188,-4330.41603401,0.00042327,74]
[408355985,1773490350212,-1718.97230879,0.000425,120]
[408355986,1773490350236,-155.66033856,0.00042559,76]
[408355987,1773490350259,-294.52,0.000426,120]
[408355988,1773490350283,-1002.99810442,0.00042686,77]
[408355989,1773490350307,-172.5562486,0.0004274,120]
[408355990,1773490350330,-250.0,0.0004294,120]
[408355991,1773490350356,-1149.0,0.00043,30]
[408355992,1773490350380,-1469.14,0.00043,30]
[408355993,1773490350403,-162.0,0.000431,120]
[408355994,1773490350427,-315.188,0.00043288,120]
[408355995,1773490350451,-315.188,0.00043288,120]
[408355996,1773490350475,-315.188,0.00043288,120]
[408355997,1773490350502,-315.188,0.00043288,120]
[408355998,1773490350527,-315.188,0.00043288,120]
[408355999,1773490350551,-315.188,0.00043288,120]
[408356000,1773490350574,-315.188,0.00043288,120]
[408356001,1773490350598,-315.188,0.00043288,120]
[408356002,1773490350623,-315.188,0.00043288,120]
[408356003,1773490350647,-315.188,0.00043288,120]
[408356004,1773490350673,-315.188,0.00043288,120]
[408356005,1773490350700,-315.188,0.00043288,120]
[408356006,1773490350726,-315.188,0.00043288,120]
[408356007,1773490350751,-315.188,0.00043288,120]
[408356008,1773490350779,-315.188,0.00043288,120]
[408356009,1773490350804,-315.188,0.00043288,120]
[408356010,1773490350829,-315.188,0.00043288,120]
[408356011,1773490350854,-315.188,0.00043288,120]
[408356012,1773490350881,-315.188,0.00043288,120]
[408356013,1773490350904,-315.188,0.00043288,120]
[408356014,1773490350928,-161.0,0.000434,120]
[408356015,1773490350953,-158.24480588,0.00043401,120]
[408356016,1773490350976,-159.29781552,0.00043401,120]
[408356017,1773490351001,-315.91552357,0.00043486,84]
[408356018,1773490351025,-1444.0,0.00043562,120]
[408356019,1773490351048,-150.0,0.00043634,120]
[408356020,1773490351073,-1633.0,0.0004365,60]
[408356021,1773490351096,-152.41,0.00043674,30]
[408356022,1773490351122,-168.0,0.000438,30]
[408356023,1773490351145,-160.0,0.000438,120]
[408356024,1773490351168,-75672.7,0.000439,60]
[408356025,1773490351191,-250.0,0.000439,120]
[408356026,1773490351216,-4520.16987935,0.00043924,88]
[408356027,1773490351238,-2000.0,0.00044,120]
[408356028,1773490351261,-20000.0,0.00044,120]
[408356029,1773490351288,-175.4254519,0.00044,120]
[408356030,1773490351312,-274.9866239,0.00044,120]
[408356031,1773490351336,-150.2368778,0.00044,30]
[408356032,1773490351359,-197.44283171,0.00044,60]
[408356033,1773490351382,-563.956309,0.00044,57]
[408356034,1773490351407,-150.0,0.00044281,120]
[408356035,1773490351430,-2684.0,0.000444,45]
[408356036,1773490351453,-1033.25968328,0.0004444,120]
[408356037,1773490351477,-150.0,0.00044549,30]
[408356038,1773490351502,-150.0,0.00044549,30]
[408356039,1773490351526,-150.0,0.00044549,30]
[408356040,1773490351550,-150.0,0.00044549,30]
[408356041,1773490351575,-150.0,0.00044549,30]
[408356042,1773490351599,-150.0,0.00044549,30]
[408356043,1773490351622,-150.0,0.00044549,30]
[408356044,1773490351645,-150.0,0.00044549,30]
[408356045,1773490351669,-169.38985709,0.00044549,30]
[408356046,1773490351813,-150.0,0.00044549,30]
[408356047,1773490351839,-322.1011925,0.00044549,30]
[408356048,1773490351864,-150.0,0.00044549,30]
[408356049,1773490351889,-150.0,0.00044549,30]
[408356050,1773490351912,-281.1109361,0.00044549,30]
[408356051,1773490351936,-150.0,0.00044549,30]
[408356052,1773490351958,-150.0,0.00044549,30]
[408356053,1773490351984,-169.38985709,0.00044599,30]
[408356054,1773490352008,-322.1011925,0.00044599,30]
[408356055,1773490352032,-150.0,0.00044601,30]
[408356056,1773490352056,-150.0,0.00044608,30]
[408356057,1773490352080,-150.0,0.00044614,30]
[408356058,1773490352106,-150.0,0.00044634,30]
[408356059,1773490352131,-169.38985709,0.00044649,30]
[408356060,1773490352155,-322.1011925,0.00044649,30]
[408356061,1773490352178,-150.0,0.00044652,30]
[408356062,1773490352203,-150.0,0.00044667,30]
[408356063,1773490352227,-150.0,0.00044679,30]
[408356064,1773490352254,-150.0,0.00044679,30]
[408356065,1773490352278,-150.0,0.00044687,30]
[408356066,1773490352302,-169.38985709,0.00044699,30]
[408356067,1773490352326,-150.0,0.00044699,30]
[408356068,1773490352350,-322.1011925,0.00044699,30]
[408356069,1773490352374,-150.0,0.00044704,30]
[408356070,1773490352398,-150.0,0.0004472,30]
[408356071,1773490352422,-150.0,0.00044726,30]
[408356072,1773490352445,-150.0,0.00044744,30]
[408356073,1773490352469,-169.38985709,0.00044749,30]
[408356074,1773490352493,-322.1011925,0.00044749,30]
[408356075,1773490352516,-150.0,0.00044755,30]
[408356076,1773490352539,-150.0,0.00044764,30]
[408356077,1773490352564,-150.0,0.00044764,30]
[408356078,1773490352589,-150.0,0.00044785,30]
[408356079,1773490352616,-169.38985709,0.00044799,30]
[408356080,1773490352644,-322.1011925,0.00044799,30]
[408356081,1773490352670,-150.0,0.00044805,30]
[408356082,1773490352696,-150.0,0.00044807,30]
[408356083,1773490352722,-150.0,0.0004481,30]
[408356084,1773490352747,-150.0,0.0004481,30]
[408356085,1773490352776,-150.0,0.00044824,30]
[408356086,1773490352807,-150.0,0.00044844,30]
[408356087,1773490352831,-169.38985709,0.00044849,30]
[408356088,1773490352855,-150.0,0.00044849,30]
[408356089,1773490352879,-322.1011925,0.00044849,30]
[408356090,1773490352903,-150.0,0.00044858,30]
[408356091,1773490352927,-150.0,0.00044875,30]
[408356092,1773490352951,-150.0,0.0004489,30]
[408356093,1773490352975,-169.38985709,0.00044899,30]
[408356094,1773490352998,-322.1011925,0.00044899,30]
[408356095,1773490353022,-362.4822092,0.000449,30]
[408356096,1773490353047,-388.32331919,0.000449,120]
[408356097,1773490353071,-150.0,0.00044903,30]
[408356098,1773490353096,-150.0,0.0004491,30]
[408356099,1773490353122,-1077.30859114,0.00044939,97]
[408356100,1773490353147,-150.0,0.0004494,30]
[408356101,1773490353172,-150.0,0.0004494,30]
[408356102,1773490353200,-169.38985709,0.00044949,30]
[408356103,1773490353226,-322.1011925,0.00044949,30]
[408356104,1773490353252,-769.0,0.00044955,120]
[408356105,1773490353278,-150.0,0.00044962,30]
[408356106,1773490353303,-150.0,0.00044962,30]
[408356107,1773490353329,-150.0,0.00044962,30]
[408356108,1773490353414,-150.0,0.00044976,30]
[408356109,1773490353442,-167.0,0.00044977,120]
[408356110,1773490353468,-150.0,0.0004498,30]
[408356111,1773490353495,-150.0,0.0004498,30]
[408356112,1773490353520,-169.38985709,0.00044999,30]
[408356113,1773490353544,-150.0,0.00044999,30]
[408356114,1773490353568,-322.1011925,0.00044999,30]
[408356115,1773490353592,-550.0,0.00045,120]
[408356116,1773490353617,-258.24881237,0.00045,30]
[408356117,1773490353646,-170.12024072,0.00045,120]
[408356118,1773490353670,-697.78,0.00045,120]
[408356119,1773490353695,-3997.39,0.00045,120]
[408356120,1773490353719,-1403.07287784,0.00045,120]
[408356121,1773490353744,-2508.89641826,0.00045,120]
[408356122,1773490353772,-200.0,0.00045,120]
[408356123,1773490353799,-1287.77,0.00045,60]
[408356124,1773490353823,-2229.98,0.00045,120]
[408356125,1773490353848,-445.99,0.00045,120]
[408356126,1773490353873,-250.0,0.00045,120]
[408356127,1773490353898,-150.51,0.00045,30]
[408356128,1773490353922,-456.37591491,0.00045,120]
[408356129,1773490353947,-17149.20777407,0.00045,60]
[408356130,1773490353971,-13070.17995892,0.00045,120]
[408356131,1773490353997,-8876.88,0.00045,120]
[408356132,1773490354023,-2661.19,0.00045,30]
[408356133,1773490354196,-863.09,0.00045,30]
[408356134,1773490354226,-3700.0,0.00045,120]
[408356135,1773490354250,-150.46975049,0.00045,30]
[408356136,1773490354274,-151.0,0.00045,60]
[408356137,1773490354300,-1633.0,0.00045,60]
[408356138,1773490354328,-22499.99,0.00045,120]
[408356139,1773490354354,-22500.0,0.00045,120]
[408356140,1773490354379,-22500.0,0.00045,120]
[408356141,1773490354404,-328.67,0.00045,120]
[408356142,1773490354429,-425.89,0.00045,120]
[408356143,1773490354456,-421.53,0.00045,120]
[408356144,1773490354483,-717.68,0.00045,120]
[408356145,1773490354513,-182.84926542,0.00045,30]
[408356146,1773490354541,-186.32,0.00045,30]
[408356147,1773490354567,-449.41,0.00045,30]
[408356148,1773490354593,-150.0,0.00045005,30]
[408356149,1773490354621,-150.0,0.00045013,30]
[408356150,1773490354647,-150.0,0.00045021,30]
[408356151,1773490354673,-169.38985709,0.00045049,30]
[408356152,1773490354698,-322.1011925,0.00045049,30]
[408356153,1773490354723,-150.0,0.00045061,30]
[408356154,1773490354747,-150.0,0.00045065,30]
[408356155,1773490354774,-151.304545,0.00045068,120]
[408356156,1773490354800,-151.304545,0.00045068,120]
[408356157,1773490354826,-151.304545,0.00045068,120]
[408356158,1773490354850,-151.304545,0.00045068,120]
[408356159,1773490354875,-151.304545,0.00045068,120]
[408356160,1773490354899,-151.304545,0.00045068,120]
[408356161,1773490354923,-151.304545,0.00045068,120]
[408356162,1773490354946,-151.304545,0.00045068,120]
[408356163,1773490354971,-151.304545,0.00045068,120]
[408356164,1773490354994,-151.304545,0.00045068,120]
[408356165,1773490355023,-151.304545,0.00045068,120]
[408356166,1773490355049,-151.304545,0.00045068,120]
[408356167,1773490355075,-151.304545,0.00045068,120]
[408356168,1773490355100,-151.304545,0.00045068,120]
[408356169,1773490355124,-151.304545,0.00045068,120]
[408356170,1773490355149,-151.304545,0.00045068,120]
[408356171,1773490355174,-151.304545,0.00045068,120]
[408356172,1773490355199,-151.304545,0.00045068,120]
[408356173,1773490355223,-151.304545,0.00045068,120]
[408356174,1773490355248,-151.304538,0.00045068,120]
[408356175,1773490355273,-151.0,0.00045068,120]
[408356176,1773490355298,-151.0,0.00045068,120]
[408356177,1773490355324,-151.0,0.00045068,120]
[408356178,1773490355353,-151.0,0.00045068,120]
[408356179,1773490355378,-151.0,0.00045068,120]
[408356180,1773490355403,-151.0,0.00045068,120]
[408356181,1773490355428,-227.572345,0.00045068,120]
[408356182,1773490355453,-151.268069,0.00045068,120]
[408356183,1773490355478,-154.077347,0.00045068,120]
[408356184,1773490355502,-213.965758,0.00045068,120]
[408356185,1773490355528,-159.254585,0.00045068,120]
[408356186,1773490355553,-152.41979,0.00045068,120]
[408356187,1773490355578,-152.41979,0.00045068,120]
[408356188,1773490355602,-152.41979,0.00045068,120]
[408356189,1773490355628,-152.41979,0.00045068,120]
[408356190,1773490355654,-152.41979,0.00045068,120]
[408356191,1773490355678,-152.41979,0.00045068,120]
[408356192,1773490355703,-152.41979,0.00045068,120]
[408356193,1773490355727,-152.41979,0.00045068,120]
[408356194,1773490355752,-152.41979,0.00045068,120]
[408356195,1773490355780,-152.41979,0.00045068,120]
[408356196,1773490355803,-152.41979,0.00045068,120]
[408356197,1773490355828,-152.41979,0.00045068,120]
[408356198,1773490355853,-152.41979,0.00045068,120]
[408356199,1773490355877,-152.41979,0.00045068,120]
[408356200,1773490355903,-152.41979,0.00045068,120]
[408356201,1773490355927,-152.41979,0.00045068,120]
[408356202,1773490355951,-152.41979,0.00045068,120]
[408356203,1773490355975,-152.41979,0.00045068,120]
[408356204,1773490355999,-152.41979,0.00045068,120]
[408356205,1773490356023,-152.419788,0.00045068,120]
[408356206,1773490356048,-167.174281,0.00045068,120]
[408356207,1773490356072,-467.232953,0.00045068,120]
[408356208,1773490356096,-467.232953,0.00045068,120]
[408356209,1773490356119,-467.232953,0.00045068,120]
[408356210,1773490356143,-467.232953,0.00045068,120]
[408356211,1773490356167,-467.232953,0.00045068,120]
[408356212,1773490356191,-467.232953,0.00045068,120]
[408356213,1773490356215,-467.232953,0.00045068,120]
[408356214,1773490356238,-467.232953,0.00045068,120]
[408356215,1773490356262,-467.232953,0.00045068,120]
[408356216,1773490356286,-467.232953,0.00045068,120]
[408356217,1773490356309,-467.232953,0.00045068,120]
[408356218,1773490356333,-467.232953,0.00045068,120]
[408356219,1773490356357,-467.232953,0.00045068,120]
[408356220,1773490356478,-467.232953,0.00045068,120]
[408356221,1773490356523,-467.232953,0.00045068,120]
[408356222,1773490356548,-467.232953,0.00045068,120]
[408356223,1773490356572,-467.232953,0.00045068,120]
[408356224,1773490356598,-467.232953,0.00045068,120]
[408356225,1773490356623,-467.232953,0.00045068,120]
[408356226,1773490356648,-467.232947,0.00045068,120]
[408356227,1773490356673,-254.502207,0.00045068,120]
[408356228,1773490356699,-223.22209,0.00045068,120]
[408356229,1773490356724,-169.094819,0.00045068,120]
[408356230,1773490356753,-169.094819,0.00045068,120]
[408356231,1773490356785,-169.094819,0.00045068,120]
[408356232,1773490356810,-169.094819,0.00045068,120]
[408356233,1773490356834,-169.094819,0.00045068,120]
[408356234,1773490356859,-169.094819,0.00045068,120]
[408356235,1773490356884,-169.094819,0.00045068,120]
[408356236,1773490356910,-169.094819,0.00045068,120]
[408356237,1773490356934,-169.094819,0.00045068,120]
[408356238,1773490356964,-169.094819,0.00045068,120]
[408356239,1773490356998,-169.094819,0.00045068,120]
[408356240,1773490357022,-169.094819,0.00045068,120]
[408356241,1773490357048,-169.094819,0.00045068,120]
[408356242,1773490357074,-169.094819,0.00045068,120]
[408356243,1773490357106,-169.094819,0.00045068,120]
[408356244,1773490357131,-169.094819,0.00045068,120]
[408356245,1773490357156,-169.094819,0.00045068,120]
[408356246,1773490357181,-169.094819,0.00045068,120]
[408356247,1773490357206,-169.094819,0.00045068,120]
[408356248,1773490357229,-169.094819,0.00045068,120]
[408356249,1773490357264,-151.0,0.00045068,120]
[408356250,1773490357293,-151.0,0.00045068,120]
[408356251,1773490357318,-151.0,0.00045068,120]
[408356252,1773490357344,-151.0,0.00045068,120]
[408356253,1773490357371,-151.0,0.00045068,120]
[408356254,1773490357397,-151.0,0.00045068,31]
[408356255,1773490357423,-151.0,0.00045068,31]
[408356256,1773490357448,-151.0,0.00045068,31]
[408356257,1773490357474,-266.513768,0.00045068,31]
[408356258,1773490357501,-228.120372,0.00045068,120]
[408356259,1773490357527,-223.926008,0.00045068,120]
[408356260,1773490357553,-202.257997,0.00045068,120]
[408356261,1773490357579,-150.0,0.0004507,30]
[408356262,1773490357604,-150.0,0.0004507,30]
[408356263,1773490357630,-167.01692511,0.00045077,120]
[408356264,1773490357656,-150.0,0.00045079,30]
[408356265,1773490357685,-169.38985709,0.00045099,30]
[408356266,1773490357712,-322.1011925,0.00045099,30]
[408356267,1773490357750,-150.0,0.00045099,30]
[408356268,1773490357791,-150.0,0.00045099,30]
[408356269,1773490357817,-150.0,0.00045116,30]
[408356270,1773490357844,-150.0,0.00045135,30]
[408356271,1773490357871,-150.0,0.00045138,30]
[408356272,1773490357897,-150.0,0.00045147,30]
[408356273,1773490357926,-169.38985709,0.00045149,30]
[408356274,1773490357954,-150.0,0.00045149,30]
[408356275,1773490357980,-322.1011925,0.00045149,30]
[408356276,1773490358008,-150.0,0.00045168,30]
[408356277,1773490358034,-150.0,0.00045195,30]
[408356278,1773490358071,-150.0,0.00045195,30]
[408356279,1773490358098,-150.0,0.00045197,30]
[408356280,1773490358123,-169.38985709,0.00045199,30]
[408356281,1773490358148,-322.1011925,0.00045199,30]
[408356282,1773490358178,-150.0,0.000452,30]
[408356283,1773490358203,-150.0,0.000452,30]
[408356284,1773490358228,-150.0,0.00045219,30]
[408356285,1773490358255,-155.66399553,0.00045222,100]
[408356286,1773490358280,-150.0,0.00045232,30]
[408356287,1773490358309,-150.0,0.00045237,30]
[408356288,1773490358335,-169.38985709,0.00045249,30]
[408356289,1773490358360,-322.1011925,0.00045249,30]
[408356290,1773490358388,-150.0,0.00045256,30]
[408356291,1773490358423,-150.0,0.00045266,30]
[408356292,1773490358453,-150.0,0.00045271,30]
[408356293,1773490358481,-7527.528,0.00045287,30]
[408356294,1773490358508,-169.38985709,0.00045299,30]
[408356295,1773490358537,-150.0,0.00045299,30]
[408356296,1773490358562,-322.1011925,0.00045299,30]
[408356297,1773490358594,-22500.0,0.00045312,120]
[408356298,1773490358626,-22500.0,0.00045312,120]
[408356299,1773490358654,-150.0,0.00045315,30]
[408356300,1773490358683,-150.0,0.00045317,30]
[408356301,1773490358713,-150.0,0.00045323,30]
[408356302,1773490358740,-150.0,0.00045331,30]
[408356303,1773490358771,-150.0,0.00045331,30]
[408356304,1773490358799,-169.38985709,0.00045349,30]
[408356305,1773490358830,-322.1011925,0.00045349,30]
[408356306,1773490358859,-150.0,0.00045374,30]
[408356307,1773490358883,-150.0,0.00045374,30]
[408356308,1773490359074,-150.0,0.00045374,30]
[408356309,1773490359098,-150.0,0.00045374,30]
[408356310,1773490359121,-150.0,0.00045396,30]
[408356311,1773490359147,-169.38985709,0.00045399,30]
[408356312,1773490359171,-322.1011925,0.00045399,30]
[408356313,1773490359195,-150.0,0.00045403,30]
[408356314,1773490359220,-150.0,0.0004541,30]
[408356315,1773490359243,-150.0,0.0004541,30]
[408356316,1773490359266,-150.0,0.00045426,30]
[408356317,1773490359290,-150.0,0.00045433,30]
[408356318,1773490359316,-169.38985709,0.00045449,30]
[408356319,1773490359339,-150.0,0.00045449,30]
[408356320,1773490359363,-322.1011925,0.00045449,30]
[408356321,1773490359387,-150.0,0.00045461,30]
[408356322,1773490359421,-150.0,0.00045461,30]
[408356323,1773490359448,-150.0,0.00045477,30]
[408356324,1773490359481,-150.0,0.00045488,30]
[408356325,1773490359519,-150.0,0.00045492,30]
[408356326,1773490359544,-169.38985709,0.00045499,30]
[408356327,1773490359569,-322.1011925,0.00045499,30]
[408356328,1773490359594,-150.0,0.00045512,30]
[408356329,1773490359622,-4631.2999177,0.0004552,103]
[408356330,1773490359647,-150.0,0.00045526,30]
[408356331,1773490359673,-150.0,0.00045529,30]
[408356332,1773490359700,-169.38985709,0.00045549,30]
[408356333,1773490359725,-322.1011925,0.00045549,30]
[408356334,1773490359751,-150.0,0.00045551,30]
[408356335,1773490359780,-150.0,0.00045573,30]
[408356336,1773490359805,-150.0,0.0004558,30]
[408356337,1773490359830,-150.0,0.00045591,30]
[408356338,1773490359855,-150.0,0.00045591,30]
[408356339,1773490359878,-169.38985709,0.00045599,30]
[408356340,1773490359902,-150.0,0.00045599,30]
[408356341,1773490359927,-322.1011925,0.00045599,30]
[408356342,1773490359950,-150.0,0.0004561,30]
[408356343,1773490359975,-22500.0,0.00045625,120]
[408356344,1773490359999,-150.0,0.00045625,30]
[408356345,1773490360023,-150.0,0.00045625,30]
[408356346,1773490360048,-150.0,0.00045632,30]
[408356347,1773490360073,-169.38985709,0.00045649,30]
[408356348,1773490360099,-322.1011925,0.00045649,30]
[408356349,1773490360124,-150.0,0.00045649,30]
[408356350,1773490360148,-150.0,0.00045649,30]
[408356351,1773490360172,-150.0,0.00045656,30]
[408356352,1773490360196,-150.0,0.00045659,30]
[408356353,1773490360221,-150.0,0.00045669,30]
[408356354,1773490360244,-150.0,0.00045683,30]
[408356355,1773490360268,-169.38985709,0.00045699,30]
[408356356,1773490360292,-322.1011925,0.00045699,30]
[408356357,1773490360317,-3821.0,0.000457,120]
[408356358,1773490360341,-173.78,0.000457,120]
[408356359,1773490360365,-770.53,0.000457,120]
[408356360,1773490360390,-210.85,0.00045715,60]
[408356361,1773490360416,-150.0,0.00045721,30]
[408356362,1773490360440,-150.0,0.00045721,30]
[408356363,1773490360464,-150.0,0.00045728,30]
[408356364,1773490360488,-150.0,0.00045735,30]
[408356365,1773490360513,-150.0,0.00045744,30]
[408356366,1773490360555,-169.38985709,0.00045749,30]
[408356367,1773490360587,-150.0,0.00045749,30]
[408356368,1773490360621,-322.1011925,0.00045749,30]
[408356369,1773490360658,-317.17720347,0.00045757,105]
[408356370,1773490360693,-150.0,0.00045787,30]
[408356371,1773490360725,-150.0,0.00045787,30]
[408356372,1773490360757,-150.0,0.00045787,30]
[408356373,1773490360789,-150.0,0.00045787,30]
[408356374,1773490360820,-169.38985709,0.00045799,30]
[408356375,1773490360852,-322.1011925,0.00045799,30]
[408356376,1773490360883,-739.36,0.000458,120]
[408356377,1773490360915,-150.0,0.00045829,30]
[408356378,1773490360946,-150.0,0.00045838,30]
[408356379,1773490360975,-150.0,0.0004584,30]
[408356380,1773490361005,-150.0,0.0004584,30]
[408356381,1773490361040,-150.0,0.00045846,30]
[408356382,1773490361070,-169.38985709,0.00045849,30]
[408356383,1773490361098,-322.1011925,0.00045849,30]
[408356384,1773490361129,-150.0,0.00045852,30]
[408356385,1773490361161,-150.0,0.00045852,30]
[408356386,1773490361186,-150.0,0.0004589,30]
[408356387,1773490361214,-169.38985709,0.00045899,30]
[408356388,1773490361245,-150.0,0.00045899,30]
[408356389,1773490361271,-322.1011925,0.00045899,30]
[408356390,1773490361299,-150.0,0.00045904,30]
[408356391,1773490361327,-150.0,0.00045915,30]
[408356392,1773490361355,-150.0,0.00045917,30]
[408356393,1773490361386,-150.0,0.00045924,30]
[408356394,1773490361416,-22500.0,0.00045938,120]
[408356395,1773490361451,-150.0,0.00045941,30]
[408356396,1773490361481,-169.38985709,0.00045949,30]
[408356397,1773490361511,-322.1011925,0.00045949,30]
[408356398,1773490361543,-150.0,0.00045963,30]
[408356399,1773490361570,-150.0,0.00045982,30]
[408356400,1773490361598,-150.0,0.00045982,30]
[408356401,1773490361627,-150.0,0.00045993,30]
[408356402,1773490361658,-169.38985709,0.00045999,30]
[408356403,1773490361688,-322.1011925,0.00045999,30]
[408356404,1773490361719,-150.0,0.00046,30]
[408356405,1773490361748,-2746.1385804,0.00046,120]
[408356406,1773490361781,-1951.72926655,0.00046,30]
[408356407,1773490361810,-451.0,0.00046,60]
[408356408,1773490361839,-151.0,0.00046,79]
[408356409,1773490361867,-659.5501196,0.00046,120]
[408356410,1773490361896,-302.17170593,0.00046,120]
[408356411,1773490361924,-151.0,0.00046,60]
[408356412,1773490361953,-150.0,0.00046022,30]
[408356413,1773490361982,-150.0,0.00046044,30]
[408356414,1773490362009,-150.0,0.00046047,30]
[408356415,1773490362038,-169.38985709,0.00046049,30]
[408356416,1773490362067,-150.0,0.00046049,30]
[408356417,1773490362096,-322.1011925,0.00046049,30]
[408356418,1773490362124,-150.0,0.00046056,30]
[408356419,1773490362154,-150.0,0.00046056,30]
[408356420,1773490362183,-150.0,0.00046062,30]
[408356421,1773490362410,-150.0,0.00046081,30]
[408356422,1773490362446,-500.0,0.00046083,60]
[408356423,1773490362472,-150.0,0.00046085,30]
[408356424,1773490362498,-152.41,0.00046092,30]
[408356425,1773490362524,-150.0,0.00046096,30]
[408356426,1773490362551,-169.38985709,0.00046099,30]
[408356427,1773490362576,-322.1011925,0.00046099,30]
[408356428,1773490362601,-150.0,0.00046112,30]
[408356429,1773490362626,-150.0,0.00046112,30]
[408356430,1773490362654,-150.0,0.0004614,30]
[408356431,1773490362680,-150.0,0.00046148,30]
[408356432,1773490362706,-169.38985709,0.00046149,30]
[408356433,1773490362731,-322.1011925,0.00046149,30]
[408356434,1773490362760,-150.0,0.00046171,30]
[408356435,1773490362786,-150.0,0.00046177,30]
[408356436,1773490362813,-150.0,0.00046199,30]
[408356437,1773490362840,-150.0,0.00046199,30]
[408356438,1773490362865,-169.38985709,0.00046199,30]
[408356439,1773490362895,-150.0,0.00046199,30]
[408356440,1773490362921,-322.1011925,0.00046199,30]
[408356441,1773490362945,-150.0,0.00046199,30]
[408356442,1773490362971,-150.0,0.00046199,30]
[408356443,1773490362996,-150.0,0.00046199,30]
[408356444,1773490363021,-162.0,0.000462,120]
[408356445,1773490363046,-150.0,0.00046242,30]